{"text_format":"1","workbook":"xlsx","n_sheets":2,"sheets":["komponenta 1","komponenta 2"],"not_rendered":{"charts":0,"images":3,"macros":1,"external_links":0,"defined_names":1,"comments":0,"pivot_tables":0},"unopened":[],"bounds":{"document_bytes":16777216,"sheet_cells":100000,"rows_first":2000,"rows_last":500,"rows_between":2000,"halvings":0,"cell_chars":16384,"cell_head_chars":4096},"cells_cut":0,"cells_raw":0,"read":"whole","date_system":"1900"}

{"sheet":"komponenta 1","index":0,"n_rows":149,"n_cols":12,"rows_kept":149,"cut":false,"hidden":false,"merged":[[137,1,137,10],[142,0,142,7],[138,8,141,8],[138,9,141,9],[138,11,141,11],[135,0,136,6],[135,7,136,7],[135,8,135,9],[135,10,136,10],[135,11,136,11],[129,1,129,10],[130,8,132,8],[130,9,132,9],[130,11,132,11],[133,0,133,7],[129,0,132,0],[121,0,124,0],[125,1,125,10],[126,8,128,8],[126,9,128,9],[126,11,128,11],[125,0,128,0],[122,8,124,8],[122,9,124,9],[122,11,124,11],[121,1,121,10],[87,8,88,8],[87,11,88,11],[87,9,88,9],[90,8,91,8],[93,9,94,9],[105,0,110,0],[111,1,111,10],[112,8,116,8],[112,9,116,9],[112,11,116,11],[111,0,116,0],[105,1,105,10],[106,8,110,8],[106,9,110,9],[106,11,110,11],[60,8,60,9],[60,10,61,10],[60,11,61,11],[39,0,46,0],[48,1,50,4],[101,8,104,8],[101,9,104,9],[101,11,104,11],[68,1,68,11],[62,1,62,11],[100,1,100,10],[100,0,104,0],[83,0,94,0],[75,0,82,0],[68,0,74,0],[96,1,98,4],[96,0,98,0],[96,8,98,8],[96,9,98,9],[96,11,98,11],[93,1,94,4],[84,8,85,8],[84,9,85,9],[84,11,85,11],[10,2,10,3],[11,2,11,3],[149,8,150,11],[11,5,11,6],[12,5,12,6],[13,5,13,6],[25,1,25,10],[148,8,148,11],[75,1,75,11],[81,1,82,4],[81,8,82,8],[81,9,82,9],[39,11,46,11],[30,1,30,10],[39,9,46,9],[39,8,46,8],[31,1,31,10],[32,1,32,10],[33,1,33,10],[34,1,34,10],[90,9,91,9],[90,11,91,11],[93,8,94,8],[56,11,57,11],[1,0,1,11],[3,2,3,11],[4,2,4,11],[5,9,5,11],[4,0,4,1],[5,0,5,1],[28,1,28,10],[29,1,29,10],[24,0,24,11],[3,0,3,1],[5,2,5,4],[6,0,6,1],[6,2,6,11],[16,1,16,11],[17,1,17,11],[18,1,18,11],[12,2,12,3],[13,2,13,3],[19,1,19,11],[20,1,20,11],[21,1,21,11],[10,5,10,6],[26,1,26,10],[27,1,27,10],[35,1,35,10],[37,0,38,6],[37,7,38,7],[37,8,37,9],[76,1,79,4],[76,8,79,8],[76,9,79,9],[76,11,79,11],[63,8,67,8],[63,9,67,9],[63,11,67,11],[69,3,69,6],[70,3,70,6],[69,9,74,9],[69,11,74,11],[71,3,71,6],[72,3,72,6],[73,3,73,6],[74,3,74,6],[69,8,74,8],[37,10,38,10],[37,11,38,11],[39,1,46,4],[60,0,61,6],[146,4,146,11],[52,9,54,9],[52,11,54,11],[56,8,57,8],[56,9,57,9],[48,8,50,8],[48,9,50,9],[48,11,50,11],[47,0,57,0],[93,11,94,11],[83,1,83,11],[81,11,82,11],[84,1,85,4],[87,1,88,4],[90,1,91,4],[58,0,58,7],[47,1,47,11],[51,1,51,11],[55,1,55,11],[52,1,54,4],[56,1,57,4],[52,8,54,8],[62,0,67,0],[60,7,61,7]]}
[]
["Вредновање пријаве пројекта"]
[]
["Програм:",null,"Ц.2. Програм подршке пословној институционалној инфраструктури - Компонента 1 - суфинансирање развојних пројеката"]
["Назив пројекта:"]
["Заводни број:",null,null,null,null,null,null,null,"Датум:"]
["Носилац пројекта:"]
[]
[null,null,"Удео у вредновању",null,"Остварена ","Вредновање Пројекта"]
[null,null,"Пројекта у %",null,"Оцена у %"]
["Тотал 1.",null,0.1,null,{"$f":"J51","v":0},{"$f":"L51","v":0}]
["Тотал 2.",null,0.7,null,{"$f":"J103","v":0},{"$f":"L103","v":0}]
["Тотал 3.",null,0.2,null,{"$f":"J117","v":0},{"$f":"L117","v":0}]
["Укупна вредност",null,{"$f":"SUM(C11:C13)","v":1},null,{"$f":"IF(AND(I51<>\"\",I103<>\"\",I117<>\"\"),(I51+I103+I117)/(K51+K103+K117),\"\")","v":""},{"$f":"IF(OR(L26<>TRUE,L27<>TRUE,L28<>TRUE,L29<>TRUE,L30<>TRUE,L31<>TRUE,L32<>TRUE, H41=7,H48<>TRUE,H49<>TRUE,H63=5,H91=5),0,SUM(F11:F13))","v":0}]
[]
["Коментар"]
["1.","Неблаговремени и неосновани пројекти се аутоматски одбацују"]
["2.","За непотуне пријаве - Агенција зардржава право да захтева допуну до истека рока за пријаву"]
["3.","Црвене (императивне) обавезе из табеле 1 - аутоматски дискфалификују Пријаву у случају неиспуњења"]
["4.","Унапред - са расписивањем Јавног позива дефинишу се приоритети Позива - уписују оцене на основу очекивања и удели група у укупном значају пројекта"]
["5.","На бази тога се оцењује стварно стање приложене Пријаве и додељује % испуњености Пројектне оцене"]
["6.","Затим, на бази унапред дефинисаног удела (значаја) сваке групе, се обрачунава укупна вредност пројекта"]
[]
[]
["Документација која се обавезно доставља приликом подношења предлога пројекта"]
["1.","Образац 1 – Пријава; ",null,null,null,null,null,null,null,null,null,false]
["2.","Образац 2 – Опис пројекта;",null,null,null,null,null,null,null,null,null,false]
["3.","Образац 3 – Изјава; ",null,null,null,null,null,null,null,null,null,false]
["4.","Образац 4 – Изјава о коришћеној државној помоћи;",null,null,null,null,null,null,null,null,null,false]
["5.","Образац 5 – Буџет; ",null,null,null,null,null,null,null,null,null,false]
["6.","Образац 6 – Структура учешћа Корисника – Партнера на пројекту; ",null,null,null,null,null,null,null,null,null,false]
["7.","Образац 7 – Подаци о чланицама конзорцијума са Уговором између чланица конзорцијума (образац се подноси уколико пријаву подноси конзорцијум);",null,null,null,null,null,null,null,null,null,false]
["8.","Образац 8 – Радне биографије лица ангажованих на пројекту, са референц листом.",null,null,null,null,null,null,null,null,null,false]
["9.","Потврда АПР да није регистрован поступак ликвидације или стечаја, нити је привредни субјект престао да постоји услед судске или одлуке другог органа са обавезујућом снагом, која не сме бити издата пре датума објављивања конкурса (оргинал или оверена копија од стране надлежног органа овере); \nУверење надлежне пореске управе да је подносилац ",null,null,null,null,null,null,null,null,null,false]
["10.","Уверење надлежне пореске управе да је подносилац Пријаве измирио све јавне приходе (порезе и доприносе), које не сме бити издата пре датума објављивања конкурса (оргинал или оверена копија од стране надлежног органа овере); ",null,null,null,null,null,null,null,null,null,false]
["11.","Уговора о конзорцијуму, уколико подносе пријаву као конзорцијум (оргинал или оверена копија од стране надлежног органа овере); ",null,null,null,null,null,null,null,null,null,false]
[]
["1. Кључни подаци о подносиоцу пријаве",null,null,null,null,null,null,"Пројектни статус","Оцена пријаве",null,"Услови пројекта","% испуњености"]
[null,null,null,null,null,null,null,null,"Бодови","%"]
["1.1.","Корисници",null,null,null,"Конзорцијум",null,null,{"$f":"IF(H41>0,IF(H41=1,K40,IF(H41=2,K41,IF(H41=3,K42,IF(H41=4,K43,IF(H41=5,K44,IF(H41=6,K45,IF(H41=7,K46,IF(H41=8,K47,0)))))))),\"\")","v":""},{"$f":"IF(H41>0,I40/MAX(K40:K47),\"\")","v":""},5,{"$f":"IF(H41>0,I40/(K59/C11),\"\")","v":""}]
[null,null,null,null,null,"Кластер",null,0,null,null,3]
[null,null,null,null,null,"Пословни инкубатор",null,null,null,null,2]
[null,null,null,null,null,"Научно технол. парк",null,null,null,null,2]
[null,null,null,null,null,"Занатска задруга",null,null,null,null,1]
[null,null,null,null,null,"Привредна комора",null,null,null,null,1]
[null,null,null,null,null,"АРРА",null,null,null,null,1]
[null,null,null,null,null,"Остало",null,null,null,null,0]
["1.2.","Оперативни капацитет"]
[null,"1.2.1. Претходно искуство у реализацији сличних пројеката ",null,null,null,"да",null,0,{"$f":"IF(H49=1,K49,IF(H49=2,K50,IF(H49=3,K51,\"\")))","v":""},{"$f":"IF(H49>0,I49/MAX(K49:K51),\"\")","v":""},2,{"$f":"IF(H49>0,I49/(K59/C11),\"\")","v":""}]
[null,null,null,null,null,"делимично",null,null,null,null,1]
[null,null,null,null,null,"не",null,null,null,null,0]
[]
[null,"1.2.2. Ниво техничког и стручног знања за реализацију пројекта ",null,null,null,"да",null,0,{"$f":"IF(H53=1,K53,IF(H53=2,K54,IF(H53=3,K55,\"\")))","v":""},{"$f":"IF(H53>0,I53/MAX(K53:K55),\"\")","v":""},2,{"$f":"IF(H53>0,I53/(K59/C11),\"\")","v":""}]
[null,null,null,null,null,"делимично",null,null,null,null,1]
[null,null,null,null,null,"не",null,null,null,null,0]
[]
[null,"1.2.3. Стабилне и довољне изворе финансирања",null,null,null,"да",null,0,{"$f":"IF(H57=1,K57,IF(H57=2,K58,\"\"))","v":""},{"$f":"IF(H57>0,I57/MAX(K57:K58),\"\")","v":""},1,{"$f":"IF(H57>0,I57/(K59/C11),\"\")","v":""}]
[null,null,null,null,null,"не",null,null,null,null,0]
["Тотал 1 -  Кључни подаци о подносиоцу пријаве",null,null,null,null,null,null,null,{"$f":"IF(H41=8,0,IF(SUM(IF(I40<>\"\",I40,0)+IF(I49<>\"\",I49,0)+IF(I53<>\"\",I53,0)+IF(I57<>\"\",I57,0))>0,SUM(IF(I40<>\"\",I40,0)+IF(I49<>\"\",I49,0)+IF(I53<>\"\",I53,0)+IF(I57<>\"\",I57,0)),\"\"))","v":""},{"$f":"IF(I59<>\"\",I59/K59,\"\")","v":""},{"$f":"SUM(MAX(K40:K47) +MAX(K49:K51)+MAX(K53:K55)+MAX(K57:K58))","v":10},{"$f":"IF(I59<>\"\",I59/(K59/$C$11),\"\")","v":""}]
[]
["2. Оцена приложеног пројекта",null,null,null,null,null,null,"Пројектни статус","Оцена пријаве",null,"Услови пројекта","% испуњености"]
[null,null,null,null,null,null,null,null,"Бодови","%"]
["2.1.","Сектор"]
[null,null,null,"Производња финалног производа",null,null,null,0,{"$f":"IF(H64>0,IF(H64=1,K64,IF(H64=2,K65,IF(H64=3,K66,IF(H64=4,K67,IF(H64=5,K68,0))))),\"\")","v":""},{"$f":"IF(H64>0,I64/MAX(K64:K68),\"\")","v":""},5,{"$f":"IF(H64>0,I64/(K134/C12),\"\")","v":""}]
[null,null,null,"Производња полупроизвода и обрада сировина",null,null,null,null,null,null,3]
[null,null,null,"ИКТ",null,null,null,null,null,null,4]
[null,null,null,"Услуге",null,null,null,null,null,null,1]
[null,null,null,"Остало",null,null,null,null,null,null,0]
["2.2.","Очекивани резултати / ефекти пројекта на крајњег корисника"]
[null,null,null,"Нови заједнички производ/процес ",null,null,null,false,{"$f":"IF(OR(H70=TRUE,H71=TRUE,H72=TRUE,H73=TRUE,H74=TRUE,H75=TRUE),IF((IF(H70=TRUE,K70,0)+IF(H71=TRUE,K71,0)+IF(H72=TRUE,K72,0)+IF(H73=TRUE,K73,0)+IF(H74=TRUE,K74,0)+IF(H75=TRUE,K75,0))>20,20,(IF(H70=TRUE,K70,0)+IF(H71=TRUE,K71,0)+IF(H72=TRUE,K72,0)+IF(H73=TRUE,K73,0)+IF(H74=TRUE,K74,0)+IF(H75=TRUE,K75,0))),\"\")","v":""},{"$f":"IF(OR(H70=TRUE,H71=TRUE,H72=TRUE,H73=TRUE,H74=TRUE,H75=TRUE),IF(I70>0,I70/MAX(K70:K75),0),\"\")","v":""},null,{"$f":"IF(I70<>\"\",I70/(K134/C12),\"\")","v":""}]
[null,null,null,"Унапређен заједнички производ/процес ",null,null,null,false]
[null,null,null,"Набавка заједничке опреме и/или инфраструктурно опремање заједничких погона",null,null,null,false]
[null,null,null,"Проширење инфраструктурних капацитета ПИ",null,null,null,false]
[null,null,null,"Унапређење инфраструктурних капацитета НТП",null,null,null,false]
[null,null,null,"Имплементација ИР резултата НИО у ММСП ",null,null,null,false]
["2.3.","Додатни ефекти пројекта"]
[null,"2.3.1. Очекивани резултати/ефекти пројекта (наведена у претходној тачки) ",null,null,null,"мање од 2 резултата/ефекта ",null,0,{"$f":"IF(H77>0,IF(H77=1,K77,IF(H77=2,K78,IF(H77=3,K79,IF(H77=4,K80,0)))),\"\")","v":""},{"$f":"IF(H77>0,I77/MAX(K77:K80),\"\")","v":""},0,{"$f":"IF(H77>0,I77/(K134/C12),\"\")","v":""}]
[null,null,null,null,null,"бар 2 резултата/ефекта ",null,null,null,null,1]
[null,null,null,null,null,"3 резултата/ефекта ",null,null,null,null,2]
[null,null,null,null,null,"4 резултата/ефекта ",null,null,null,null,3]
[]
[null,"2.3.2. Успостављање нових механизама сарадње између ММСП/ нових модела подршке ММСП",null,null,null,"да",null,0,{"$f":"IF(H82>0,IF(H82=1,K82,IF(H82=2,K83,0)),\"\")","v":""},{"$f":"IF(H82>0,I82/MAX(K82:K83),\"\")","v":""},2,{"$f":"IF(H82>0,I82/(K134/C12),\"\")","v":""}]
[null,null,null,null,null,"не",null,null,null,null,0]
["2.4.","Утицај пројекта на крајње кориснике пројекта"]
[null,"2.4.1. Крајњи корисници пројекта су јасно дефинисани ",null,null,null,"да",null,0,{"$f":"IF(H85>0,IF(H85=1,K85,IF(H85=2,K86,0)),\"\")","v":""},{"$f":"IF(H85>0,I85/MAX(K85:K86),\"\")","v":""},1,{"$f":"IF(H85>0,I85/(K134/C12),\"\")","v":""}]
[null,null,null,null,null,"не",null,null,null,null,0]
[]
[null,"2.4.2. Потребе крајњих корисника су јасно дефинисане",null,null,null,"да",null,0,{"$f":"IF(H88>0,IF(H88=1,K88,IF(H88=2,K89,0)),\"\")","v":""},{"$f":"IF(H88>0,I88/MAX(K88:K89),\"\")","v":""},1,{"$f":"IF(H88>0,I88/(K134/C12),\"\")","v":""}]
[null,null,null,null,null,"не",null,null,null,null,0]
[]
[null,"2.4.3. Крајњи корисници су укључени у креирање програма ",null,null,null,"да",null,0,{"$f":"IF(H91>0,IF(H91=1,K91,IF(H91=2,K92,0)),\"\")","v":""},{"$f":"IF(H91>0,I91/MAX(K91:K92),\"\")","v":""},1,{"$f":"IF(H91>0,I91/(K134/C12),\"\")","v":""}]
[null,null,null,null,null,"не",null,null,null,null,0]
[]
[null,"2.4.4. Активности на пројекту утичу на решавање проблема крајњих корисника",null,null,null,"да",null,0,{"$f":"IF(H94>0,IF(H94=1,K94,IF(H94=2,K95,0)),\"\")","v":""},{"$f":"IF(H94>0,I94/MAX(K94:K95),\"\")","v":""},2,{"$f":"IF(H94>0,I94/(K134/C12),\"\")","v":""}]
[null,null,null,null,null,"не",null,null,null,null,0]
[]
["2.5.","Број ММСП- крајњих корисника",null,null,null,"Више од 10",null,0,{"$f":"IF(H97>0,IF(H97=1,K97,IF(H97=2,K98,IF(H97=2,K99,0))),\"\")","v":""},{"$f":"IF(H97>0,I97/MAX(K97:K99),\"\")","v":""},4,{"$f":"IF(H97>0,I97/(K134/C12),\"\")","v":""}]
[null,null,null,null,null,"Од 4 до 10",null,null,null,null,2]
[null,null,null,null,null,"До 3",null,null,null,null,0]
[]
["2.6.","Територија реализације пројекта "]
[null,"Пројекат се реализује на територији коју обухвата више од 5 општина",null,null,null,null,null,0,{"$f":"IF(H102>0,IF(H102=1,K102,IF(H102=2,K103,IF(H102=3,K104,IF(H102=4,K105,0)))),\"\")","v":""},{"$f":"IF(H102>0,I102/MAX(K102:K105),\"\")","v":""},5,{"$f":"IF(H102>0,I102/(K134/C12),\"\")","v":""}]
[null,"Пројекат се реализује на територији коју обухвата од 3 до 5 општина",null,null,null,null,null,null,null,null,3]
[null,"Пројекат се реализује на територији коју обухвата до 2 општине",null,null,null,null,null,null,null,null,1]
[null,"Пројекат се реализује на територији 1 општине",null,null,null,null,null,null,null,null,0]
["2.7.","Посебне групе "]
[null,null,null,null,"Почетници у пословању ",null,null,false,{"$f":"IF(H111=TRUE,0,IF(OR(H107=TRUE,H108=TRUE,H109=TRUE,H110=TRUE),(IF(H107=TRUE,K107,0)+IF(H108=TRUE,K108,0)+IF(H109=TRUE,K109,0)+IF(H110=TRUE,K110,0)),\"\"))","v":""},{"$f":"IF(OR(H107=TRUE,H108=TRUE,H109=TRUE,H110=TRUE,H111=TRUE),I107/SUM(K107:K111),\"\")","v":""},1,{"$f":"IF(I107<>\"\",I107/(K134/C12),\"\")","v":""}]
[null,null,null,null,"Родна равноправност",null,null,false,null,null,1]
[null,null,null,null,"Млади",null,null,false,null,null,1]
[null,null,null,null,"Све  рањиве групе укључујући и инвалиде",null,null,false,null,null,1]
[null,null,null,null,"Не третира посебне групе",null,null,false,null,null,0]
["2.8.","Новоотворена радна места код крајњих корисника пројекта"]
[null,null,null,null,"Нових радних места 8 и више",null,null,0,{"$f":"IF(H113>0,IF(H113=1,K113,IF(H113=2,K114,IF(H113=3,K115,IF(H113=4,K116,IF(H113=5,K117,0))))),\"\")","v":""},{"$f":"IF(H113>0,I113/MAX(K113:K117),\"\")","v":""},10,{"$f":"IF(H113>0,I113/(K134/C12),\"\")","v":""}]
[null,null,null,null,"Нових радних места 5-7",null,null,null,null,null,6]
[null,null,null,null,"Нових радних места 3-4",null,null,null,null,null,3]
[null,null,null,null,"Нових радних места 0-2",null,null,null,null,null,2]
[null,null,null,null,"Нема новоотворених радних места",null,null,null,null,null,0]
["Obezbedjenje Implementacije Projekta"]
["Period Obeveznosti Ugovorne Obaveze (3 godine)",null,null,null,null,null,null,null,null,null,"da/ne"]
["Sredstva Obezbedjenja dodeljenih sredstava",null,null,null,null,null,null,null,null,null,"da/ne"]
[null,null,null,null,null,"Total 4."]
["2.9.","Иновативност пројекта"]
[null,null,null,"Пројекат је усмерен у иновације и нова решења",null,null,null,0,{"$f":"IF(H123>0,IF(H123=1,K123,IF(H123=2,K124,IF(H123=2,K125,0))),\"\")","v":""},{"$f":"IF(H123>0,I123/MAX(K123:K125),\"\")","v":""},4,{"$f":"IF(H123>0,I123/(K134/C12),\"\")","v":""}]
[null,null,null,"Пројекат преузима иновативна решења од других",null,null,null,null,null,null,2]
[null,null,null,"Пројекат није иновативан",null,null,null,null,null,null,0]
["2.10.","Одрживост"]
[null,null,null,"Обезбеђене конкретне активности/акције за даљи развој ",null,null,null,0,{"$f":"IF(H127>0,IF(H127=1,K127,IF(H127=2,K128,IF(H127=2,K129,0))),\"\")","v":""},{"$f":"IF(H127>0,I127/MAX(K127:K129),\"\")","v":""},5,{"$f":"IF(H127>0,I127/(K134/C12),\"\")","v":""}]
[null,null,null,"Планиран оквир за даљи развој",null,null,null,null,null,null,2]
[null,null,null,"Не постоји план даљег развоја",null,null,null,null,null,null,0]
["2.11.","Видљивост пројекта"]
[null,null,null,null,"Постоји јасан план промоције пројекта",null,null,0,{"$f":"IF(H131>0,IF(H131=1,K131,IF(H131=2,K132,IF(H131=2,K133,0))),\"\")","v":""},{"$f":"IF(H131>0,I131/MAX(K131:K133),\"\")","v":""},3,{"$f":"IF(H131>0,I131/(K134/C12),\"\")","v":""}]
[null,null,null,null,"Планиран оквир промоције пројекта",null,null,null,null,null,1]
[null,null,null,null,"Не постоји план промоције пројекта",null,null,null,null,null,0]
["Тотал 2 -  Оцена приложеног пројекта",null,null,null,null,null,null,null,{"$f":"IF(H64=5,0,IF(SUM(IF(I64<>\"\",I64,0)+IF(I70<>\"\",I70,0)+IF(I77<>\"\",I77,0)+IF(I82<>\"\",I82,0)+IF(I85<>\"\",I85,0)+IF(I88<>\"\",I88,0)+IF(I91<>\"\",I91,0)+IF(I94<>\"\",I94,0)+IF(I97<>\"\",I97,0)+IF(I102<>\"\",I102,0)+IF(I107<>\"\",I107,0)+IF(I113<>\"\",I113,0)+IF(I123<>\"\",I123,0)+IF(I127<>\"\",I127,0)+IF(I131<>\"\",I131,0))>0,SUM(IF(I64<>\"\",I64,0)+IF(I70<>\"\",I70,0)+IF(I77<>\"\",I77,0)+IF(I82<>\"\",I82,0)+IF(I85<>\"\",I85,0)+IF(I88<>\"\",I88,0)+IF(I91<>\"\",I91,0)+IF(I94<>\"\",I94,0)+IF(I97<>\"\",I97,0)+IF(I102<>\"\",I102,0)+IF(I107<>\"\",I107,0)+IF(I113<>\"\",I113,0)+IF(I123<>\"\",I123,0)+IF(I127<>\"\",I127,0)+IF(I131<>\"\",I131,0)),\"\"))","v":""},{"$f":"IF(I134<>\"\",I134/K134,\"\")","v":""},{"$f":"SUM(MAX(K64:K68) + 20 +MAX(K77:K80)+MAX(K82:K83)+MAX(K85:K86)+MAX(K88:K89)+MAX(K91:K92)+MAX(K94:K95)+MAX(K97:K99)+MAX(K102:K105)+SUM(K107:K111)+MAX(K113:K117)+MAX(K123:K125)+MAX(K127:K129)+MAX(K131:K133))","v":70},{"$f":"IF(I134<>\"\",I134/(K134/$C$12),\"\")","v":""}]
[]
["3. Економски утицај",null,null,null,null,null,null,"Пројектни статус","Оцена пријаве",null,"Услови пројекта","% испуњености"]
[null,null,null,null,null,null,null,null,"Бодови","%"]
["3.1.","Очекиване економске перформансе пројекта"]
[null,"Повећање извоза/нова тржишта",null,null,null,null,null,false,{"$f":"IF(OR(H139=TRUE,H140=TRUE,H141=TRUE,H142=TRUE),(IF(H139=TRUE,K139,0)+IF(H140=TRUE,K140,0)+IF(H141=TRUE,K141,0)+IF(H142=TRUE,K142,0)),\"\")","v":""},{"$f":"IF(OR(H139=TRUE,H140=TRUE,H141=TRUE,H142=TRUE),I139/SUM(K139:K142),\"\")","v":""},5,{"$f":"IF(I139<>\"\",I139/(K143/C13),\"\")","v":""}]
[null,"План уговорених послова",null,null,null,null,null,false,null,null,5]
[null,"Утицај на локални економски развој",null,null,null,null,null,false,null,null,5]
[null,"Могућност реплицирања у другим секторима/ локалним заједницама",null,null,null,null,null,false,null,null,5]
["Тотал 3 - Економски утицај",null,null,null,null,null,null,null,{"$f":"IF(H139>0,I139,\"\")","v":""},{"$f":"IF(I143<>\"\",I143/K143,\"\")","v":""},{"$f":"SUM(K139:K142)","v":20},{"$f":"IF(I143<>\"\",I143/(K143/$C$13),\"\")","v":""}]
[]
[]
[]
["Препорука за финансирање:"]
[]
[null,null,null,null,null,null,null,null,"Потпис одговорног лица"]

{"sheet":"komponenta 2","index":1,"n_rows":142,"n_cols":12,"rows_kept":142,"cut":false,"hidden":false,"merged":[[1,0,1,11],[3,0,3,1],[3,2,3,11],[4,0,4,1],[4,2,4,11],[5,0,5,1],[5,2,5,4],[5,9,5,11],[12,2,12,3],[12,5,12,6],[13,2,13,3],[13,5,13,6],[16,1,16,11],[17,1,17,11],[6,0,6,1],[6,2,6,11],[10,2,10,3],[10,5,10,6],[11,2,11,3],[11,5,11,6],[26,1,26,10],[27,1,27,10],[28,1,28,10],[29,1,29,10],[30,1,30,10],[31,1,31,10],[18,1,18,11],[19,1,19,11],[20,1,20,11],[21,1,21,11],[24,0,24,11],[25,1,25,10],[37,11,38,11],[39,0,47,0],[39,1,47,4],[39,8,47,8],[39,9,47,9],[39,11,47,11],[32,1,32,10],[33,1,33,10],[34,1,34,10],[35,1,35,10],[37,0,38,6],[37,7,38,7],[37,8,37,9],[37,10,38,10],[59,0,59,7],[61,0,62,6],[61,7,62,7],[61,8,61,9],[61,10,62,10],[61,11,62,11],[53,11,55,11],[56,1,56,11],[57,1,58,4],[57,8,58,8],[57,9,58,9],[57,11,58,11],[48,0,58,0],[48,1,48,11],[49,1,51,4],[49,8,51,8],[49,9,51,9],[49,11,51,11],[52,1,52,11],[53,1,55,4],[53,8,55,8],[53,9,55,9],[64,11,72,11],[65,3,65,6],[66,3,66,6],[67,3,67,6],[68,3,68,6],[72,3,72,6],[63,0,72,0],[63,1,63,11],[64,3,64,6],[64,8,72,8],[64,9,72,9],[73,0,78,0],[73,1,73,11],[74,1,75,4],[74,8,75,8],[74,9,75,9],[74,11,75,11],[77,1,78,4],[77,8,78,8],[77,9,78,9],[77,11,78,11],[86,1,87,4],[86,8,87,8],[86,9,87,9],[86,11,87,11],[89,1,90,4],[89,8,90,8],[89,9,90,9],[89,11,90,11],[79,0,90,0],[79,1,79,11],[80,1,81,4],[80,8,81,8],[80,9,81,9],[80,11,81,11],[83,1,84,4],[83,8,84,8],[83,9,84,9],[83,11,84,11],[92,0,94,0],[92,1,94,4],[92,8,94,8],[92,9,94,9],[92,11,94,11],[96,0,100,0],[96,1,96,10],[97,8,100,8],[97,9,100,9],[97,11,100,11],[101,0,106,0],[101,1,101,10],[102,8,106,8],[102,9,106,9],[102,11,106,11],[107,0,110,0],[107,1,107,10],[108,8,110,8],[108,9,110,9],[108,11,110,11],[127,0,127,7],[115,0,118,0],[115,1,115,10],[116,8,118,8],[116,9,118,9],[116,11,118,11],[119,0,122,0],[119,1,119,10],[120,8,122,8],[120,9,122,9],[120,11,122,11],[139,4,139,11],[142,8,143,11],[69,3,69,6],[70,3,70,6],[71,3,71,6],[108,3,108,6],[109,3,109,6],[110,3,110,6],[132,8,134,8],[132,9,134,9],[132,11,134,11],[135,0,135,7],[141,8,141,11],[129,0,130,6],[129,7,130,7],[129,8,129,9],[129,10,130,10],[129,11,130,11],[131,1,131,10],[123,0,126,0],[123,1,123,10],[124,8,126,8],[124,9,126,9],[124,11,126,11]]}
[]
["Вредновање пријаве пројекта"]
[]
["Програм:",null,"Ц.2. Програм подршке пословној институционалној инфраструктури - Компонента 2 - суфинансирање развојних пројеката"]
["Назив пројекта:"]
["Заводни број:",null,null,null,null,null,null,null,"Датум:"]
["Носилац пројекта:"]
[]
[null,null,"Удео у вредновању",null,"Остварена","Вредновање пројекта"]
[null,null,"Пројекта у %",null,"Оцена у %"]
["Тотал 1.",null,0.1,null,{"$f":"J60","v":""},{"$f":"L60","v":""}]
["Тотал 2.",null,0.75,null,{"$f":"J128","v":""},{"$f":"L128","v":""}]
["Тотал 3.",null,0.15,null,{"$f":"J136","v":""},{"$f":"L136","v":""}]
["Укупна вредност",null,{"$f":"SUM(C11:C13)","v":1},null,{"$f":"IF(OR(I60<>\"\",I128<>\"\",I136<>\"\"),(IF(I60<>\"\",I60,0)+IF(I128<>\"\",I128,0)+IF(I136<>\"\",I136,0))/(K60+K128+K136),\"\")","v":""},{"$f":"IF(OR(L26<>TRUE,L27<>TRUE,L28<>TRUE,L29<>TRUE,L30<>TRUE,L31<>TRUE,L32<>TRUE,L33<>TRUE,L34<>TRUE,L35<>TRUE,L36<>TRUE,H41=9,),0,IF(F11<>\"\",F11,0)+IF(F12<>\"\",F12,0)+IF(F13<>\"\",F13,0))","v":0}]
[]
["Коментар"]
["1.","Неблаговремени и неосновани пројекти се аутоматски одбацују"]
["2.","За непотуне пријаве - Агенција зардржава право да захтева допуну до истека рока за пријаву"]
["3.","Црвене (императивне) обавезе из табеле 1 - аутоматски дискфалификују Пријаву у случају неиспуњења"]
["4.","Унапред - са расписивањем Јавног позива дефинишу се приоритети Позива - уписују оцене на основу очекивања и удели група у укупном значају пројекта"]
["5.","На бази тога се оцењује стварно стање приложене Пријаве и додељује % испуњености Пројектне оцене"]
["6.","Затим, на бази унапред дефинисаног удела (значаја) сваке групе, се обрачунава укупна вредност пројекта"]
[]
[]
["Документација која се обавезно доставља приликом подношења предлога пројекта"]
["1.","Образац 1 – Пријава; ",null,null,null,null,null,null,null,null,null,false]
["2.","Образац 2 – Опис пројекта;",null,null,null,null,null,null,null,null,null,false]
["3.","Образац 3 – Изјава; ",null,null,null,null,null,null,null,null,null,false]
["4.","Образац 4 – Изјава о коришћеној државној помоћи;",null,null,null,null,null,null,null,null,null,false]
["5.","Образац 5 – Буџет; ",null,null,null,null,null,null,null,null,null,false]
["6.","Образац 6 – Структура учешћа Корисника – Партнера на пројекту; ",null,null,null,null,null,null,null,null,null,false]
["7.","Образац 7 – Подаци о чланицама конзорцијума са Уговором између чланица конзорцијума (образац се подноси уколико пријаву подноси конзорцијум);",null,null,null,null,null,null,null,null,null,false]
["8.","Образац 8 – Радне биографије лица ангажованих на пројекту, са референц листом.",null,null,null,null,null,null,null,null,null,false]
["9.","Потврда АПР да није регистрован поступак ликвидације или стечаја, нити је привредни субјект престао да постоји услед судске или одлуке другог органа са обавезујућом снагом, која не сме бити издата пре датума објављивања конкурса (оргинал или оверена копија од стране надлежног органа овере); \nУверење надлежне пореске управе да је подносилац ",null,null,null,null,null,null,null,null,null,false]
["10.","Уверење надлежне пореске управе да је подносилац Пријаве измирио све јавне приходе (порезе и доприносе), које не сме бити издата пре датума објављивања конкурса (оргинал или оверена копија од стране надлежног органа овере); ",null,null,null,null,null,null,null,null,null,false]
["11.","Уговора о конзорцијуму, уколико подносе пријаву као конзорцијум (оргинал или оверена копија од стране надлежног органа овере); ",null,null,null,null,null,null,null,null,null,false]
[]
["1. Кључни подаци о подносиоцу пријаве",null,null,null,null,null,null,"Пројектни статус","Оцена пријаве",null,"Услови пројекта","% испуњености"]
[null,null,null,null,null,null,null,null,"Бодови","%"]
["1.1.","Корисници",null,null,null,"Конзорцијум",null,null,{"$f":"IF(H41>0,IF(H41=1,K40,IF(H41=2,K41,IF(H41=3,K42,IF(H41=4,K43,IF(H41=5,K44,IF(H41=6,K45,IF(H41=7,K46,IF(H41=8,K47,IF(H41=9,K48,0))))))))),\"\")","v":""},{"$f":"IF(H41>0,I40/MAX(K40:K48),\"\")","v":""},5,{"$f":"IF(H41>0,I40/(K60/C11),\"\")","v":""}]
[null,null,null,null,null,"Кластер",null,0,null,null,3]
[null,null,null,null,null,"Пословни инкубатор",null,null,null,null,2]
[null,null,null,null,null,"Научно технол. парк",null,null,null,null,2]
[null,null,null,null,null,"Занатска задруга",null,null,null,null,2]
[null,null,null,null,null,"Привредна комора",null,null,null,null,2]
[null,null,null,null,null,"АРРА",null,null,null,null,1]
[null,null,null,null,null,"Удружења",null,null,null,null,1]
[null,null,null,null,null,"Остало",null,null,null,null,0]
["1.2.","Оперативни капацитет"]
[null,"1.2.1. Претходно искуство у реализацији сличних пројеката ",null,null,null,"да",null,0,{"$f":"IF(H50=1,K50,IF(H50=2,K51,IF(H50=3,K52,\"\")))","v":""},{"$f":"IF(H50>0,I50/MAX(K50:K52),\"\")","v":""},2,{"$f":"IF(H50>0,I50/(K60/C11),\"\")","v":""}]
[null,null,null,null,null,"делимично",null,null,null,null,1]
[null,null,null,null,null,"не",null,null,null,null,0]
[]
[null,"1.2.2. Ниво техничког и стручног знања за реализацију пројекта ",null,null,null,"да",null,0,{"$f":"IF(H54=1,K54,IF(H54=2,K55,IF(H54=3,K56,\"\")))","v":""},{"$f":"IF(H54>0,I54/MAX(K54:K56),\"\")","v":""},2,{"$f":"IF(H54>0,I54/(K60/C11),\"\")","v":""}]
[null,null,null,null,null,"делимично",null,null,null,null,1]
[null,null,null,null,null,"не",null,null,null,null,0]
[]
[null,"1.2.3. Стабилне и довољне изворе финансирања",null,null,null,"да",null,0,{"$f":"IF(H58=1,K58,IF(H58=2,K59,\"\"))","v":""},{"$f":"IF(H58>0,I58/MAX(K58:K59),\"\")","v":""},1,{"$f":"IF(H58>0,I58/(K60/C11),\"\")","v":""}]
[null,null,null,null,null,"не",null,null,null,null,0]
["Тотал 1 -  Кључни подаци о подносиоцу пријаве",null,null,null,null,null,null,null,{"$f":"IF(H41=8,0,IF(SUM(IF(I40<>\"\",I40,0)+IF(I50<>\"\",I50,0)+IF(I54<>\"\",I54,0)+IF(I58<>\"\",I58,0))>0,SUM(IF(I40<>\"\",I40,0)+IF(I50<>\"\",I50,0)+IF(I54<>\"\",I54,0)+IF(I58<>\"\",I58,0)),\"\"))","v":""},{"$f":"IF(I60<>\"\",I60/K60,\"\")","v":""},{"$f":"SUM(MAX(K40:K48) +MAX(K50:K52)+MAX(K54:K56)+MAX(K58:K59))","v":10},{"$f":"IF(I60<>\"\",I60/(K60/$C$11),\"\")","v":""}]
[]
["2. Оцена приложеног пројекта",null,null,null,null,null,null,"Пројектни статус","Оцена пријаве",null,"Услови пројекта","% испуњености"]
[null,null,null,null,null,null,null,null,"Бодови","%"]
["2.1.","Очекивани резултати / ефекти пројекта на крајњег корисника"]
[null,null,null,"Нова услуга за иновативна МСПП",null,null,null,false,{"$f":"IF(OR(H65=TRUE,H66=TRUE,H67=TRUE,H68=TRUE,H69=TRUE,H70=TRUE,H71=TRUE,H72=TRUE,H73=TRUE),IF((IF(H65=TRUE,K65,0)+IF(H66=TRUE,K66,0)+IF(H67=TRUE,K67,0)+IF(H68=TRUE,K68,0)+IF(H69=TRUE,K69,0)+IF(H70=TRUE,K70,0)+IF(H71=TRUE,K71,0)+IF(H72=TRUE,K72,0)+IF(H73=TRUE,K73,0))>20,20,(IF(H65=TRUE,K65,0)+IF(H66=TRUE,K66,0)+IF(H67=TRUE,K67,0)+IF(H68=TRUE,K68,0)+IF(H69=TRUE,K69,0)+IF(H70=TRUE,K70,0)+IF(H71=TRUE,K71,0)+IF(H72=TRUE,K72,0)+IF(H73=TRUE,K73,0))),\"\")","v":""},{"$f":"IF(OR(H65=TRUE,H66=TRUE,H67=TRUE,H68=TRUE,H69=TRUE,H70=TRUE,H71=TRUE,H72=TRUE,H73=TRUE),IF(I65>0,I65/MAX(K65:K73),0),\"\")","v":""},null,{"$f":"IF(I65<>\"\",I65/(K128/C12),\"\")","v":""}]
[null,null,null,"Унапређеа услуга за иновативна МСПП",null,null,null,false]
[null,null,null,"Нова услуга -намењена унапређењу конкурентности ММСП ",null,null,null,false]
[null,null,null,"Унапређена услуга -намењена унапређењу конкурентности ММСП ",null,null,null,false]
[null,null,null,"Успостављање нових механизама сарадње између ММСП који доприносе повећању конкурентности;",null,null,null,false]
[null,null,null,"Унапређење модела пословне инкубације;",null,null,null,false]
[null,null,null,"Унапређење модела подршке од стране НТП;",null,null,null,false]
[null,null,null,"Промоција предузетништва",null,null,null,false]
[null,null,null,"Анализе/истраживање/студије",null,null,null,false]
["2.2.","Додатни ефекти пројекта"]
[null,"2.2.1. Очекивани резултати/ефекти пројекта (наведена у претходној тачки) ",null,null,null,"мање од 2 резултата/ефекта ",null,0,{"$f":"IF(H75>0,IF(H75=1,K75,IF(H75=2,K76,0)),\"\")","v":""},{"$f":"IF(H75>0,I75/MAX(K75:K76),\"\")","v":""},0,{"$f":"IF(H75>0,I75/(K128/C12),\"\")","v":""}]
[null,null,null,null,null,"бар 2 резултата/ефекта ",null,null,null,null,6]
[]
[null,"2.2.2. Пројекат утиче на повезивање са НИО",null,null,null,"да",null,0,{"$f":"IF(H78>0,IF(H78=1,K78,IF(H78=2,K79,0)),\"\")","v":""},{"$f":"IF(H78>0,I78/MAX(K78:K79),\"\")","v":""},4,{"$f":"IF(H78>0,I78/(K128/C12),\"\")","v":""}]
[null,null,null,null,null,"не",null,null,null,null,0]
["2.4.","Утицај пројекта на крајње кориснике пројекта"]
[null,"2.4.1. Крајњи корисници пројекта су јасно дефинисани ",null,null,null,"да",null,0,{"$f":"IF(H81>0,IF(H81=1,K81,IF(H81=2,K82,0)),\"\")","v":""},{"$f":"IF(H81>0,I81/MAX(K81:K82),\"\")","v":""},1,{"$f":"IF(H81>0,I81/(K128/C12),\"\")","v":""}]
[null,null,null,null,null,"не",null,null,null,null,0]
[]
[null,"2.4.2. Потребе крајњих корисника су јасно дефинисане",null,null,null,"да",null,0,{"$f":"IF(H84>0,IF(H84=1,K84,IF(H84=2,K85,0)),\"\")","v":""},{"$f":"IF(H84>0,I84/MAX(K84:K85),\"\")","v":""},1,{"$f":"IF(H84>0,I84/(K128/C12),\"\")","v":""}]
[null,null,null,null,null,"не",null,null,null,null,0]
[]
[null,"2.4.3. Крајњи корисници су укључени у креирање програма ",null,null,null,"да",null,0,{"$f":"IF(H87>0,IF(H87=1,K87,IF(H87=2,K88,0)),\"\")","v":""},{"$f":"IF(H87>0,I87/MAX(K87:K88),\"\")","v":""},1,{"$f":"IF(H87>0,I87/(K128/C12),\"\")","v":""}]
[null,null,null,null,null,"не",null,null,null,null,0]
[]
[null,"2.4.4. Активности на пројекту утичу на решавање проблема крајњих корисника",null,null,null,"да",null,0,{"$f":"IF(H90>0,IF(H90=1,K90,IF(H90=2,K91,0)),\"\")","v":""},{"$f":"IF(H90>0,I90/MAX(K90:K91),\"\")","v":""},2,{"$f":"IF(H90>0,I90/(K128/C12),\"\")","v":""}]
[null,null,null,null,null,"не",null,null,null,null,0]
[]
["2.5.","Број ММСП- крајњих корисника",null,null,null,"Више од 30",null,0,{"$f":"IF(H93>0,IF(H93=1,K93,IF(H93=2,K94,IF(H93=2,K95,0))),\"\")","v":""},{"$f":"IF(H93>0,I93/MAX(K93:K95),\"\")","v":""},5,{"$f":"IF(H93>0,I93/(K128/C12),\"\")","v":""}]
[null,null,null,null,null,"Од 10 до 30",null,null,null,null,2]
[null,null,null,null,null,"До 10",null,null,null,null,0]
[]
["2.6.","Територија реализације пројекта "]
[null,"Пројекат се реализује на територији коју обухвата више од 5 општина",null,null,null,null,null,0,{"$f":"IF(H98>0,IF(H98=1,K98,IF(H98=2,K99,IF(H98=3,K100,IF(H98=4,K101,0)))),\"\")","v":""},{"$f":"IF(H98>0,I98/MAX(K98:K101),\"\")","v":""},5,{"$f":"IF(H98>0,I98/(K128/C12),\"\")","v":""}]
[null,"Пројекат се реализује на територији коју обухвата од 3 до 5 општина",null,null,null,null,null,null,null,null,3]
[null,"Пројекат се реализује на територији коју обухвата до 2 општине",null,null,null,null,null,null,null,null,1]
[null,"Пројекат се реализује на територији 1 општине",null,null,null,null,null,null,null,null,0]
["2.7.","Посебне групе "]
[null,null,null,null,"Почетници у пословању ",null,null,false,{"$f":"IF(H107=TRUE,0,IF(OR(H103=TRUE,H104=TRUE,H105=TRUE,H106=TRUE),(IF(H103=TRUE,K103,0)+IF(H104=TRUE,K104,0)+IF(H105=TRUE,K105,0)+IF(H106=TRUE,K106,0)),\"\"))","v":""},{"$f":"IF(OR(H103=TRUE,H104=TRUE,H105=TRUE,H106=TRUE,H107=TRUE),I103/SUM(K103:K107),\"\")","v":""},2,{"$f":"IF(I103<>\"\",I103/(K128/C12),\"\")","v":""}]
[null,null,null,null,"Родна равноправност",null,null,false,null,null,1]
[null,null,null,null,"Млади",null,null,false,null,null,1]
[null,null,null,null,"Све  рањиве групе укључујући и инвалиде",null,null,false,null,null,1]
[null,null,null,null,"Не третира посебне групе",null,null,false,null,null,0]
["2.8.","Утицај пројекта на развој предузетништва"]
[null,null,null,"Пројекат директно помаже потенцијалним предузетницима да покрену сопствени посао",null,null,null,0,{"$f":"IF(H109>0,IF(H109=1,K109,IF(H109=2,K110,IF(H109=3,K111,0))),\"\")","v":""},{"$f":"IF(H109>0,I109/MAX(K109:K111),\"\")","v":""},10,{"$f":"IF(H109>0,I109/(K128/C12),\"\")","v":""}]
[null,null,null,"Пројекат индиректно помаже потенцијалним предузетницима да покрену сопствени посао",null,null,null,null,null,null,5]
[null,null,null,"Пројекат не утиче на потенцијалне предузетнике за покретање сопственог посла",null,null,null,null,null,null,0]
["Obezbedjenje Implementacije Projekta"]
["Period Obeveznosti Ugovorne Obaveze (3 godine)",null,null,null,null,null,null,null,null,null,"da/ne"]
["Sredstva Obezbedjenja dodeljenih sredstava",null,null,null,null,null,null,null,null,null,"da/ne"]
[null,null,null,null,null,"Total 4."]
["2.9.","Иновативност пројекта"]
[null,null,null,"Пројекат је усмерен у иновације и нова решења",null,null,null,0,{"$f":"IF(H117>0,IF(H117=1,K117,IF(H117=2,K118,IF(H117=2,K119,0))),\"\")","v":""},{"$f":"IF(H117>0,I117/MAX(K117:K119),\"\")","v":""},5,{"$f":"IF(H117>0,I117/(K128/C12),\"\")","v":""}]
[null,null,null,"Пројекат преузима иновативна решења од других",null,null,null,null,null,null,3]
[null,null,null,"Пројекат није иновативан",null,null,null,null,null,null,0]
["2.10.","Одрживост"]
[null,null,null,"Обезбеђене конкретне активности/акције за даљи развој ",null,null,null,0,{"$f":"IF(H121>0,IF(H121=1,K121,IF(H121=2,K122,IF(H121=2,K123,0))),\"\")","v":""},{"$f":"IF(H121>0,I121/MAX(K121:K123),\"\")","v":""},5,{"$f":"IF(H121>0,I121/(K128/C12),\"\")","v":""}]
[null,null,null,"Планиран оквир за даљи развој",null,null,null,null,null,null,2]
[null,null,null,"Не постоји план даљег развоја",null,null,null,null,null,null,0]
["2.11.","Видљивост пројекта"]
[null,null,null,null,"Постоји јасан план промоције пројекта",null,null,0,{"$f":"IF(H125>0,IF(H125=1,K125,IF(H125=2,K126,IF(H125=2,K127,0))),\"\")","v":""},{"$f":"IF(H125>0,I125/MAX(K125:K127),\"\")","v":""},5,{"$f":"IF(H125>0,I125/(K128/C12),\"\")","v":""}]
[null,null,null,null,"Планиран оквир промоције пројекта",null,null,null,null,null,2]
[null,null,null,null,"Не постоји план промоције пројекта",null,null,null,null,null,0]
["Тотал 2 -  Оцена приложеног пројекта",null,null,null,null,null,null,null,{"$f":"IF(SUM(IF(I65<>\"\",I65,0)+IF(I75<>\"\",I75,0)+IF(I78<>\"\",I78,0)+IF(I81<>\"\",I81,0)+IF(I84<>\"\",I84,0)+IF(I87<>\"\",I87,0)+IF(I90<>\"\",I90,0)+IF(I93<>\"\",I93,0)+IF(I98<>\"\",I98,0)+IF(I103<>\"\",I103,0)+IF(I109<>\"\",I109,0)+IF(I117<>\"\",I117,0)+IF(I121<>\"\",I121,0)+IF(I125<>\"\",I125,0))>0,SUM(IF(I65<>\"\",I65,0)+IF(I75<>\"\",I75,0)+IF(I78<>\"\",I78,0)+IF(I81<>\"\",I81,0)+IF(I84<>\"\",I84,0)+IF(I87<>\"\",I87,0)+IF(I90<>\"\",I90,0)+IF(I93<>\"\",I93,0)+IF(I98<>\"\",I98,0)+IF(I103<>\"\",I103,0)+IF(I109<>\"\",I109,0)+IF(I117<>\"\",I117,0)+IF(I121<>\"\",I121,0)+IF(I125<>\"\",I125,0)),\"\")","v":""},{"$f":"IF(I128<>\"\",I128/K128,\"\")","v":""},{"$f":"SUM(20+MAX(K75:K76)+MAX(K78:K79)+MAX(K81:K82)+MAX(K84:K85)+MAX(K87:K88)+MAX(K90:K91)+MAX(K93:K95)+MAX(K98:K101)+SUM(K103:K107)+MAX(K109:K111)+MAX(K117:K119)+MAX(K121:K123)+MAX(K125:K127))","v":75},{"$f":"IF(I128<>\"\",I128/(K128/$C$12),\"\")","v":""}]
[]
["3. Економски утицај",null,null,null,null,null,null,"Пројектни статус","Оцена пријаве",null,"Услови пројекта","% испуњености"]
[null,null,null,null,null,null,null,null,"Бодови","%"]
["3.1.","Очекиване економске перформансе пројекта"]
[null,"План уговорених послова",null,null,null,null,null,false,{"$f":"IF(OR(H133=TRUE,H134=TRUE,H135=TRUE),(IF(H133=TRUE,K133,0)+IF(H134=TRUE,K134,0)+IF(H135=TRUE,K135,0)),\"\")","v":""},{"$f":"IF(OR(H133=TRUE,H134=TRUE,H135=TRUE),I133/SUM(K133:K135),\"\")","v":""},5,{"$f":"IF(I133<>\"\",I133/(K136/C13),\"\")","v":""}]
[null,"Утицај на локални економски развој",null,null,null,null,null,false,null,null,5]
[null,"Могућност реплицирања у другим секторима/ локалним заједницама",null,null,null,null,null,false,null,null,5]
["Тотал 3 - Економски утицај",null,null,null,null,null,null,null,{"$f":"IF(H133>0,I133,\"\")","v":""},{"$f":"IF(I136<>\"\",I136/K136,\"\")","v":""},{"$f":"SUM(K133:K135)","v":15},{"$f":"IF(I136<>\"\",I136/(K136/$C$13),\"\")","v":""}]
[]
[]
[]
["Препорука за финансирање:"]
[]
[null,null,null,null,null,null,null,null,"Потпис одговорног лица"]